bitfinex/quotes_SOLUSD_20240909
["timestamp","ask_amount","ask_price","bid_price","bid_amount"]
[1725907990450,22.1892,133.57,133.51,0.12549]
[1725907990451,16.1246,133.57,133.54,50.0]
[1725907990772,16.1246,133.57,133.52,50.0]
[1725907990960,16.1246,133.57,133.5,50.0]
[1725907991566,16.1246,133.57,133.48,50.0]
[1725907992255,16.1246,133.57,133.51,50.0]
[1725907993076,16.1246,133.57,133.45,32.45959826]
[1725907993077,16.1246,133.57,133.48,50.0]
[1725907995190,16.1246,133.57,133.52,50.0]
[1725907998375,16.1246,133.57,133.5,50.0]
[1725907999580,16.1246,133.57,133.52,50.0]
[1725908001667,16.1246,133.57,133.51,0.12549]
[1725908002081,16.1246,133.57,133.52,50.0]
[1725908002658,16.1246,133.57,133.51,0.12549]
[1725908003382,16.1246,133.57,133.52,50.0]
[1725908003564,16.1246,133.57,133.5,50.0]
[1725908010972,0.3769085,133.65,133.6,22.61549]
[1725908011287,0.3769085,133.65,133.64,50.0]
[1725908013367,0.3769085,133.65,133.64,50.12549]
[1725908019570,0.3769085,133.65,133.59,50.0]
[1725908019775,0.3769085,133.65,133.57,50.0]
[1725908019977,20.3769085,133.65,133.59,50.0]
[1725908020176,20.3769085,133.65,133.6,1.49671368]
[1725908020987,20.3769085,133.65,133.59,50.0]
[1725908021203,20.3769085,133.65,133.6,1.49674517]
[1725908022292,20.3769085,133.65,133.59,50.0]
[1725908023993,20.3769085,133.65,133.6,1.49685971]
[1725908024297,0.3769085,133.65,133.63,50.0]
[1725908025882,0.3769085,133.65,133.61,50.0]
[1725908026497,0.3769085,133.65,133.63,50.0]
[1725908032208,0.3769085,133.65,133.61,50.0]
[1725908032701,0.3769085,133.65,133.62,1.49644627]
[1725908038906,0.3769085,133.65,133.61,50.0]
[1725908039315,0.3769085,133.65,133.62,1.49642608]
[1725908041214,0.3769085,133.65,133.61,50.0]
[1725908041798,0.3769085,133.65,133.62,1.49642522]
[1725908041998,0.3769085,133.65,133.61,50.0]
[1725908042515,0.3769085,133.65,133.57,50.0]
[1725908042716,20.3769085,133.65,133.57,50.0]
[1725908045910,45.0,133.64,133.57,50.0]
[1725908046112,45.0,133.64,133.55,50.0]
[1725908046313,22.2342,133.63,133.55,50.0]
[1725908046533,20.0,133.62,133.53,50.0]
[1725908047117,20.0,133.62,133.55,50.0]
[1725908047435,20.0,133.62,133.53,50.0]
[1725908048419,20.0,133.62,133.54,6.26839694]
[1725908048619,20.0,133.62,133.53,50.0]
[1725908048842,20.0,133.62,133.54,6.26943662]
[1725908049045,20.0,133.62,133.53,50.0]
[1725908049539,60.8308,133.61,133.53,50.0]
[1725908049832,60.8308,133.61,133.51,50.0]
[1725908050034,20.0,133.6,133.51,50.0]
[1725908051826,20.0,133.6,133.53,50.0]
[1725908053847,20.0,133.6,133.51,50.0]
[1725908054337,45.0,133.59,133.51,50.0]
[1725908054813,15.2364,133.58,133.51,50.0]
[1725908055015,6.322,133.57,133.51,50.0]
[1725908055730,6.322,133.57,133.5,0.12549]
[1725908057127,6.322,133.57,133.49,50.0]
[1725908057432,6.322,133.57,133.5,1.49771038]
[1725908060943,6.322,133.57,133.49,50.0]
[1725908061947,6.322,133.57,133.47,50.0]
[1725908062134,20.0,133.56,133.47,50.0]
[1725908062327,16.2667,133.55,133.47,50.0]
[1725908062841,16.2667,133.55,133.49,50.0]
[1725908063431,16.2667,133.55,133.47,50.0]
[1725908063642,16.2667,133.55,133.48,6.2674957]
[1725908063817,16.2667,133.55,133.47,50.0]
[1725908064140,16.2667,133.55,133.43,6.3656]
[1725908064141,22.3654,133.53,133.43,50.0]
[1725908064320,0.12549,133.52,133.43,50.0]
[1725908064524,16.2667,133.51,133.43,50.0]
[1725908064741,20.0,133.5,133.43,50.0]
[1725908064944,20.0,133.5,133.41,50.0]
[1725908065944,20.0,133.5,133.43,50.0]
[1725908066324,20.0,133.5,133.42,0.12549]
[1725908066628,20.0,133.5,133.41,50.0]
[1725908067128,22.8735,133.49,133.41,50.0]
[1725908067329,16.4607,133.47,133.41,50.0]
[1725908071032,16.4607,133.47,133.43,50.0]
[1725908071239,16.4607,133.47,133.44,1.4985145]
[1725908071438,16.4607,133.47,133.4,50.12549]
[1725908075948,16.4607,133.47,133.4,50.0]
[1725908077057,16.4607,133.47,133.38,50.0]
[1725908079738,20.0,133.46,133.39,1.49892785]
[1725908080046,20.0,133.46,133.38,50.0]
[1725908081231,20.0,133.46,133.39,6.28616488]
[1725908082335,20.0,133.46,133.38,50.0]
[1725908082534,16.4607,133.47,133.42,50.0]
[1725908086156,16.4607,133.47,133.4,50.0]
[1725908086349,16.4607,133.47,133.41,6.28280551]
[1725908086549,16.4607,133.47,133.42,6.28280551]
[1725908086732,16.4607,133.47,133.4,50.0]
[1725908087054,16.4607,133.47,133.41,6.28250454]
[1725908087350,16.4607,133.47,133.42,6.28250454]
[1725908087559,16.4607,133.47,133.4,50.0]
[1725908087767,16.4607,133.47,133.41,6.27483859]
[1725908087939,16.4607,133.47,133.42,6.27483859]
[1725908088145,16.4607,133.47,133.4,50.0]
[1725908088444,16.4607,133.47,133.41,6.21398708]
[1725908088635,16.4607,133.47,133.42,6.21398708]
[1725908088837,16.4607,133.47,133.4,50.0]
[1725908089056,16.4607,133.47,133.41,6.2137997]
[1725908089239,16.4607,133.47,133.42,6.2137997]
[1725908089441,16.4607,133.47,133.4,50.0]
[1725908089646,16.4607,133.47,133.41,6.21436672]
[1725908089856,16.4607,133.47,133.42,6.21436672]
[1725908090161,16.4607,133.47,133.4,50.0]
[1725908090370,16.4607,133.47,133.41,6.2155067]
[1725908090536,16.4607,133.47,133.42,6.2155067]
[1725908090735,16.4607,133.47,133.4,50.0]
[1725908090963,16.4607,133.47,133.41,6.21482764]
[1725908091260,16.4607,133.47,133.42,6.21482764]
[1725908091460,16.4607,133.47,133.4,50.0]
[1725908091668,16.4607,133.47,133.41,6.21515077]
[1725908091960,16.4607,133.47,133.42,6.21515077]
[1725908092167,16.4607,133.47,133.43,6.21610603]
[1725908092367,16.4607,133.47,133.4,50.0]
[1725908092579,16.4607,133.47,133.41,6.21592202]
[1725908092871,16.4607,133.47,133.42,6.21592202]
[1725908093050,16.4607,133.47,133.39,0.12549]
[1725908093243,0.12549,133.46,133.4,6.2179917]
[1725908093472,15.6535,133.45,133.41,6.2179917]
[1725908093657,20.0,133.44,133.42,6.2179917]
[1725908093841,20.0,133.44,133.38,50.0]
[1725908094041,20.0,133.44,133.39,6.21927004]
[1725908094278,20.0,133.44,133.4,6.21927004]
[1725908094450,20.0,133.44,133.41,6.21927004]
[1725908094649,20.0,133.44,133.38,50.0]
[1725908094847,20.0,133.44,133.39,6.22136171]
[1725908095078,20.0,133.44,133.4,6.22136171]
[1725908095244,20.0,133.44,133.41,6.22136171]
[1725908095449,20.0,133.44,133.42,6.22136171]
[1725908095670,20.0,133.44,133.38,50.0]
[1725908095957,20.0,133.44,133.39,6.22185385]
[1725908096161,20.0,133.44,133.4,6.22185385]
[1725908096369,20.0,133.44,133.38,50.0]
[1725908098873,15.6535,133.45,133.4,50.0]
[1725908099474,15.6535,133.45,133.38,50.0]
[1725908100336,15.6535,133.45,133.37,0.12549]
[1725908100767,15.6535,133.45,133.38,50.0]
[1725908100964,15.6535,133.45,133.39,1.49897544]
[1725908101164,15.6535,133.45,133.4,1.49899691]
[1725908102168,15.6535,133.45,133.39,1.49900444]
[1725908102474,15.6535,133.45,133.4,1.49900444]
[1725908103261,15.6535,133.45,133.38,50.0]
[1725908106660,6.2102,133.44,133.38,50.0]
[1725908106864,6.2102,133.44,133.36,50.0]
[1725908107246,5.7102,133.44,133.36,50.0]
[1725908108261,5.7102,133.44,133.36,56.35547434]
[1725908108670,5.7102,133.44,133.36,50.0]
[1725908109282,15.6535,133.43,133.37,9.67406792]
[1725908109574,15.6535,133.43,133.38,9.67406792]
[1725908109782,15.6535,133.43,133.39,9.67406792]
[1725908110074,5.83569,133.44,133.32,50.0]
[1725908110075,81.72439,133.42,133.32,50.0]
[1725908110585,22.9492,133.41,133.32,50.0]
[1725908110874,20.0,133.4,133.32,50.0]
[1725908111180,20.0,133.4,133.3,50.0]
[1725908111355,60.7608,133.39,133.3,50.0]
[1725908111551,20.0,133.38,133.3,50.0]
[1725908112274,22.0663,133.36,133.31,1.99991901]
[1725908112853,22.0663,133.36,133.32,50.0]
[1725908113078,22.0663,133.36,133.33,1.49971881]
[1725908113776,22.0663,133.36,133.32,50.0]
[1725908114082,15.7608,133.36,133.32,50.0]
[1725908114980,15.7608,133.36,133.34,50.0]
[1725908119388,15.7608,133.36,133.31,0.5]
[1725908120383,15.7608,133.36,133.32,50.0]
[1725908122887,15.7608,133.36,133.31,0.5]
[1725908123988,6.1806,133.35,133.31,0.5]
[1725908127891,6.1806,133.35,133.3,50.0]
[1725908133701,6.1806,133.35,133.28,50.0]
[1725908135393,6.1806,133.35,133.27,0.12549]
[1725908136081,6.1806,133.35,133.28,50.0]
[1725908136801,6.1806,133.35,133.27,0.12549]
[1725908137001,6.1806,133.35,133.28,50.0]
[1725908137595,6.1806,133.35,133.29,1.50032583]
[1725908137902,6.1806,133.35,133.28,50.0]
[1725908138203,6.1806,133.35,133.29,1.5002575]
[1725908138781,6.1806,133.35,133.28,50.0]
[1725908150299,6.1806,133.35,133.23,6.6603]
[1725908150300,15.7608,133.36,133.31,50.0]
[1725908150493,15.7608,133.36,133.32,1.4997976]
[1725908150700,15.7608,133.36,133.33,1.49980272]
[1725908150885,15.7608,133.36,133.31,50.0]
[1725908151615,15.7608,133.36,133.29,50.12549]
[1725908154899,15.7608,133.36,133.29,50.0]
[1725908156291,15.7608,133.36,133.3,6.03966461]
[1725908156493,15.7608,133.36,133.31,6.03966461]
[1725908156691,15.7608,133.36,133.29,50.0]
[1725908156893,15.7608,133.36,133.3,6.0412898]
[1725908157088,15.7608,133.36,133.31,6.0412898]
[1725908157314,15.7608,133.36,133.29,50.0]
[1725908158035,15.7608,133.36,133.27,50.0]
[1725908158191,22.3529,133.34,133.27,50.0]
[1725908160914,22.3529,133.34,133.24,50.0]
[1725908161107,16.0738,133.32,133.24,50.0]
[1725908161503,16.0738,133.32,133.22,50.0]
[1725908161819,20.0,133.31,133.24,50.0]
[1725908162024,20.0,133.31,133.22,50.0]
[1725908162205,20.0,133.31,133.24,50.0]
[1725908163304,20.0,133.31,133.18,17.52767015]
[1725908163305,67.6453,133.3,133.22,50.0]
[1725908163502,67.6453,133.3,133.24,50.0]
[1725908163503,22.6453,133.3,133.24,50.0]
[1725908165011,22.6453,133.3,133.26,50.0]
[1725908165207,16.3236,133.3,133.27,1.50042247]
[1725908165533,16.2877,133.33,133.3,50.0]
[1725908165826,16.2877,133.33,133.31,1.49994469]
[1725908166001,6.1842,133.38,133.32,50.0]
[1725908166002,16.2728,133.37,133.32,50.0]
[1725908167329,16.2728,133.37,133.33,1.49976098]
[1725908167829,16.2728,133.37,133.32,50.0]
[1725908168533,16.2728,133.37,133.33,1.49975902]
[1725908169508,16.2084,133.41,133.34,50.0]
[1725908169709,16.2084,133.41,133.35,1.49945985]
[1725908169912,16.2084,133.41,133.36,1.49943161]
[1725908170316,16.2084,133.41,133.37,1.49943111]
[1725908171729,16.2084,133.41,133.32,50.12549]
[1725908172312,16.2084,133.41,133.34,50.0]
[1725908173421,20.0,133.4,133.32,50.12549]
[1725908173828,20.0,133.4,133.32,50.0]
[1725908174722,6.5644,133.37,133.28,50.0]
[1725908174925,16.4746,133.36,133.28,50.0]
[1725908176413,16.4746,133.36,133.26,50.0]
[1725908176630,20.0,133.35,133.26,50.0]
[1725908177225,20.0,133.35,133.28,50.0]
[1725908178727,20.0,133.35,133.25,6.5656]
[1725908178728,20.0,133.35,133.27,0.12549]
[1725908180213,20.0,133.35,133.26,50.0]
[1725908180420,15.7113,133.35,133.26,50.0]
[1725908180626,20.0,133.34,133.26,50.0]
[1725908180838,20.0,133.34,133.24,50.0]
[1725908181019,20.0,133.34,133.25,1.50036049]
[1725908181020,15.6203,133.32,133.25,1.50036049]
[1725908181739,21.8874,133.32,133.25,1.50036049]
[1725908183339,21.8874,133.32,133.27,50.0]
[1725908183718,21.8874,133.32,133.25,50.0]
[1725908185923,21.8874,133.32,133.26,1.50056748]
[1725908186242,21.8874,133.32,133.27,51.50044052]
[1725908186944,21.8874,133.32,133.23,50.0]
[1725908188918,16.1736,133.31,133.23,50.0]
[1725908189253,16.2434,133.29,133.2,50.0]
[1725908190337,16.2434,133.29,133.21,0.12549]
[1725908190541,16.2434,133.29,133.22,50.0]
[1725908191325,16.2434,133.29,133.24,50.0]
[1725908193151,16.2434,133.29,133.25,0.12549]
[1725908193453,16.2434,133.29,133.26,50.0]
[1725908193637,16.2434,133.29,133.27,1.5003777]
[1725908194226,16.2434,133.29,133.24,50.0]
[1725908199843,16.2434,133.29,133.22,50.0]
[1725908204245,16.2434,133.29,133.2,50.0]
[1725908204449,6.1181,133.28,133.2,50.0]
[1725908206450,6.1181,133.28,133.21,1.50099102]
[1725908207861,6.1181,133.28,133.22,50.0]
[1725908208043,6.1181,133.28,133.23,1.50083005]
[1725908208251,6.1181,133.28,133.24,1.5008159]
[1725908208863,6.1181,133.28,133.22,50.0]
[1725908211045,6.1181,133.28,133.2,50.0]
[1725908211443,16.458,133.27,133.2,50.0]
[1725908212063,16.458,133.27,133.19,0.12549]
[1725908212239,16.58349,133.27,133.17,0.8769085]
[1725908212546,16.458,133.23,133.17,0.8769085]
[1725908215472,16.458,133.23,133.17,2.37837705]
[1725908216440,16.458,133.23,133.17,0.8769085]
[1725908216842,45.12549,133.22,133.17,0.8769085]
[1725908217269,45.0,133.22,133.17,0.8769085]
[1725908220574,16.6071,133.21,133.17,0.8769085]
[1725908220784,16.6071,133.19,133.17,0.8769085]
[1725908221278,16.6071,133.19,133.1,50.0]
[1725908221279,0.12549,133.18,133.1,50.0]
[1725908221487,0.12549,133.18,133.08,50.0]
[1725908221488,16.2668,133.17,133.08,50.0]
[1725908221657,6.2216,133.16,133.08,50.0]
[1725908222171,16.627,133.14,133.08,50.0]
[1725908223077,16.627,133.14,133.09,1.50231405]
[1725908223466,16.627,133.14,133.08,50.0]
[1725908223871,16.627,133.14,133.09,1.50246935]
[1725908225564,16.627,133.14,133.1,50.0]
[1725908225760,16.627,133.14,133.11,1.50225295]
[1725908226079,16.627,133.14,133.08,50.0]
[1725908226772,16.627,133.14,133.1,50.0]
[1725908227162,16.627,133.14,133.11,1.5022492]
[1725908227355,16.627,133.14,133.1,50.0]
[1725908228563,16.0998,133.17,133.12,50.0]
[1725908230272,16.0998,133.17,133.13,1.50187081]
[1725908231178,16.0998,133.17,133.12,50.0]
[1725908235082,16.0998,133.17,133.13,1.50199763]
[1725908236476,16.2455,133.2,133.15,50.0]
[1725908238586,16.2455,133.2,133.16,50.0]
[1725908244683,11.57534762,133.26,133.2,50.0]
[1725908244881,15.2474,133.28,133.24,50.0]
[1725908245082,7.77018768,133.29,133.25,1.50062027]
[1725908245287,21.3985,133.32,133.26,50.0]
[1725908245801,21.3985,133.32,133.24,50.0]
[1725908246281,21.3985,133.32,133.26,50.0]
[1725908247306,21.3985,133.32,133.27,1.50046671]
[1725908247486,21.3985,133.32,133.26,50.0]
[1725908247998,21.3985,133.32,133.27,1.50046648]
[1725908248779,15.2474,133.32,133.28,50.0]
[1725908249105,15.2474,133.32,133.29,1.50013972]
[1725908249288,15.2474,133.32,133.28,50.0]
[1725908249483,15.2474,133.32,133.26,50.12549]
[1725908249689,15.2474,133.32,133.24,50.0]
[1725908250006,15.2474,133.32,133.26,50.0]
[1725908250190,15.2474,133.32,133.27,1.50041196]
[1725908250600,15.2474,133.32,133.26,50.0]
[1725908251105,15.2474,133.32,133.27,1.50046496]
[1725908255890,15.2474,133.32,133.28,50.0]
[1725908256102,15.2474,133.32,133.29,1.50017599]
[1725908256418,15.2474,133.32,133.3,1.50016624]
[1725908256991,15.2474,133.32,133.29,1.50018705]
[1725908258805,21.8618,133.35,133.3,51.5002273]
[1725908259017,15.3955,133.35,133.3,51.5002273]
[1725908259991,15.3955,133.35,133.31,1.4998492]
[1725908260186,15.3955,133.35,133.32,50.0]
[1725908262007,15.3955,133.35,133.3,50.0]
[1725908263290,15.3955,133.35,133.32,50.0]
[1725908263495,15.3955,133.35,133.33,1.49979837]
[1725908266098,6.1402,133.38,133.33,1.49979837]
[1725908267004,6.1402,133.38,133.31,0.12549]
[1725908268023,6.1402,133.38,133.3,50.0]
[1725908269519,6.1402,133.38,133.32,50.0]
[1725908269699,6.1402,133.38,133.33,1.49977921]
[1725908271212,6.1402,133.38,133.31,0.12549]
[1725908271813,6.1402,133.38,133.3,50.0]
[1725908272521,6.1402,133.38,133.32,50.0]
[1725908273124,35.808,133.37,133.29,50.0]
[1725908273701,35.808,133.37,133.3,1.50001568]
[1725908274830,35.808,133.37,133.32,50.0]
[1725908275127,15.808,133.37,133.33,1.49970703]
[1725908275512,15.808,133.37,133.34,50.0]
[1725908275717,15.808,133.37,133.35,1.49956061]
[1725908277125,15.808,133.37,133.34,50.0]
[1725908277126,15.808,133.37,133.32,50.12549]
[1725908277316,15.808,133.37,133.33,0.12549]
[1725908277517,15.808,133.37,133.32,50.0]
[1725908277728,15.808,133.37,133.33,1.49963023]
[1725908278125,15.808,133.37,133.34,50.0]
[1725908278329,15.808,133.37,133.35,1.49956824]
[1725908279503,15.808,133.37,133.34,50.0]
[1725908279504,15.808,133.37,133.36,1.49820734]
[1725908279704,15.5343,133.4,133.36,1.49820734]
[1725908280532,15.5343,133.4,133.37,1.49933962]
[1725908280717,15.5343,133.4,133.35,1.49934166]
[1725908280919,15.5343,133.4,133.36,1.49934348]
[1725908282440,15.5343,133.4,133.35,1.49933728]
[1725908282610,15.5343,133.4,133.34,50.0]
[1725908282811,15.5343,133.4,133.35,1.49936652]
[1725908283011,15.5343,133.4,133.36,1.49933774]
[1725908283707,16.2734,133.44,133.37,1.49933994]
[1725908283923,20.0,133.43,133.38,50.0]
[1725908284125,20.0,133.43,133.39,1.49909048]
[1725908284722,20.0,133.43,133.38,50.0]
[1725908290219,20.0,133.43,133.39,6.03549906]
[1725908290439,20.0,133.43,133.38,50.0]
[1725908290641,20.0,133.43,133.39,6.03480911]
[1725908290833,20.0,133.43,133.38,50.0]
[1725908291035,20.0,133.43,133.39,6.03387347]
[1725908291231,20.0,133.43,133.38,50.0]
[1725908291435,20.0,133.43,133.39,6.03358233]
[1725908291647,20.0,133.43,133.36,50.12549]
[1725908292041,20.0,133.43,133.37,1.49920519]
[1725908292344,20.0,133.43,133.38,50.0]
[1725908301747,16.2734,133.44,133.39,1.49906155]
[1725908301950,16.2734,133.44,133.4,1.49891325]
[1725908302747,16.2734,133.44,133.38,50.0]
[1725908302748,16.2734,133.44,133.36,50.0]
[1725908303140,16.2734,133.44,133.37,0.66769344]
[1725908303535,16.2734,133.44,133.38,50.0]
[1725908303863,16.2734,133.44,133.36,50.0]
[1725908304236,65.0,133.43,133.36,50.0]
[1725908304943,20.0,133.43,133.36,50.0]
[1725908311260,20.0,133.43,133.37,1.49929459]
[1725908312159,20.0,133.43,133.36,50.0]
[1725908315958,21.914,133.42,133.34,50.0]
[1725908316336,20.0,133.41,133.34,50.0]
[1725908318157,20.0,133.41,133.35,1.49954871]
[1725908318463,20.0,133.41,133.36,1.49940578]
[1725908319242,21.914,133.42,133.36,51.49940578]
[1725908319450,21.914,133.42,133.37,1.49923749]
[1725908319665,15.6212,133.42,133.37,1.49923749]
[1725908320570,15.6212,133.42,133.36,50.0]
[1725908321356,15.6212,133.42,133.34,50.0]
[1725908321664,15.6212,133.42,133.35,9.64720895]
[1725908321964,15.6212,133.42,133.36,9.64720895]
[1725908322173,15.6212,133.42,133.34,50.0]
[1725908322474,15.6212,133.42,133.35,9.64776922]
[1725908322771,15.6212,133.42,133.36,9.64776922]
[1725908323074,15.6212,133.42,133.34,50.0]
[1725908323258,15.6212,133.42,133.35,9.64772823]
[1725908323466,15.6212,133.42,133.36,9.64772823]
[1725908323659,15.6212,133.42,133.34,50.0]
[1725908323860,15.6212,133.42,133.35,9.64722448]
[1725908324048,15.6212,133.42,133.36,9.64722448]
[1725908324248,15.6212,133.42,133.34,50.0]
[1725908324471,15.6212,133.42,133.35,9.64694889]
[1725908324772,15.6212,133.42,133.36,9.64694889]
[1725908324945,15.6212,133.42,133.34,50.0]
[1725908325272,15.6212,133.42,133.35,9.6488887]
[1725908325458,15.6212,133.42,133.36,9.6488887]
[1725908325658,15.6212,133.42,133.34,50.0]
[1725908325843,15.6212,133.42,133.35,9.64861437]
[1725908326049,20.0,133.41,133.36,9.64861437]
[1725908326249,6.4617,133.4,133.34,50.0]
[1725908326558,6.4617,133.4,133.35,9.6494545]
[1725908326767,6.4617,133.4,133.34,50.0]
[1725908334085,15.6548,133.39,133.32,50.0]
[1725908334374,15.6548,133.39,133.31,6.47036106]
[1725908334687,15.6548,133.39,133.32,50.0]
[1725908336682,15.6548,133.39,133.31,0.12549]
[1725908337379,15.6548,133.39,133.3,50.0]
[1725908338154,15.6548,133.39,133.32,50.0]
[1725908339181,15.6548,133.39,133.33,1.49978022]
[1725908341478,15.6548,133.39,133.34,50.0]
[1725908344574,15.6548,133.39,133.3,6.34207381]
[1725908344575,15.6548,133.39,133.32,50.0]
[1725908346475,15.6548,133.39,133.34,50.0]
[1725908351863,15.6548,133.39,133.35,6.02143596]
[1725908352080,15.6548,133.39,133.36,6.02143596]
[1725908352292,15.6548,133.39,133.34,50.0]
[1725908352505,15.6548,133.39,133.35,6.02141519]
[1725908352671,15.6548,133.39,133.36,6.02141519]
[1725908352990,15.6548,133.39,133.34,50.0]
[1725908353177,15.6548,133.39,133.35,6.02114887]
[1725908353492,15.6548,133.39,133.36,6.02114887]
[1725908353668,15.6548,133.39,133.34,50.0]
[1725908353869,15.6548,133.39,133.35,6.02134068]
[1725908354169,15.6548,133.39,133.36,6.02134068]
[1725908354372,15.6548,133.39,133.34,50.0]
[1725908354572,15.6548,133.39,133.35,6.02007623]
[1725908354872,15.6548,133.39,133.36,6.02007623]
[1725908355067,15.6548,133.39,133.34,50.0]
[1725908355269,15.6548,133.39,133.35,6.01986979]
[1725908355572,15.6548,133.39,133.36,6.01986979]
[1725908355772,15.6548,133.39,133.37,6.01986979]
[1725908355973,15.6548,133.39,133.34,50.0]
[1725908356190,15.6548,133.39,133.35,6.0197892]
[1725908356393,15.6548,133.39,133.36,6.0197892]
[1725908356594,15.6548,133.39,133.37,6.0197892]
[1725908356779,15.6548,133.39,133.34,50.0]
[1725908356980,15.6548,133.39,133.35,6.01986704]
[1725908357189,15.6548,133.39,133.36,6.01986704]
[1725908357494,15.6548,133.39,133.37,6.01986704]
[1725908357701,15.6548,133.39,133.32,50.0]
[1725908357894,15.6548,133.39,133.33,6.02132497]
[1725908358109,15.6548,133.39,133.34,6.02132497]
[1725908358283,15.6548,133.39,133.35,6.02132497]
[1725908358491,15.6548,133.39,133.36,6.02132497]
[1725908358693,15.6548,133.39,133.32,50.0]
[1725908359006,15.6548,133.39,133.33,6.02092953]
[1725908359197,15.6548,133.39,133.34,6.02092953]
[1725908359391,15.6548,133.39,133.35,6.02092953]
[1725908359701,15.6548,133.39,133.36,6.02092953]
[1725908359899,15.6548,133.39,133.32,50.0]
[1725908360075,15.6548,133.39,133.33,6.02157974]
[1725908360276,15.6548,133.39,133.34,6.02157974]
[1725908360511,15.6548,133.39,133.35,6.02157974]
[1725908360798,15.6548,133.39,133.36,6.02157974]
[1725908360999,15.6548,133.39,133.32,50.0]
[1725908361303,15.6548,133.39,133.33,6.02114085]
[1725908361508,15.6548,133.39,133.34,6.02114085]
[1725908361679,15.6548,133.39,133.35,6.02114085]
[1725908361878,15.6548,133.39,133.36,6.02114085]
[1725908362091,15.6548,133.39,133.32,50.0]
[1725908362497,15.6548,133.39,133.33,6.02138349]
[1725908362698,15.6548,133.39,133.34,6.02138349]
[1725908363005,15.6548,133.39,133.35,6.02138349]
[1725908363208,15.6548,133.39,133.36,6.02138349]
[1725908363375,15.6548,133.39,133.32,50.0]
[1725908363698,15.6548,133.39,133.33,6.02153099]
[1725908363903,15.6548,133.39,133.34,6.02153099]
[1725908364200,15.6548,133.39,133.35,6.02153099]
[1725908364383,15.6548,133.39,133.36,6.02153099]
[1725908364584,15.6548,133.39,133.32,50.0]
[1725908364796,15.6548,133.39,133.33,6.02141648]
[1725908365004,15.6548,133.39,133.34,6.02141648]
[1725908365196,15.6548,133.39,133.35,6.02141648]
[1725908365410,15.6548,133.39,133.36,6.02141648]
[1725908365608,15.6548,133.39,133.32,50.0]
[1725908365780,15.6548,133.39,133.33,6.02142243]
[1725908365980,15.6548,133.39,133.34,6.02142243]
[1725908366304,15.6548,133.39,133.35,6.02142243]
[1725908366606,15.6548,133.39,133.32,50.0]
[1725908366788,15.6548,133.39,133.33,6.021874]
[1725908366991,15.6548,133.39,133.34,57.52154306]
[1725908367195,15.6548,133.39,133.36,50.0]
[1725908367396,16.6632,133.43,133.38,50.0]
[1725908367596,16.6632,133.43,133.4,50.0]
[1725908367807,16.6632,133.43,133.41,7.52069475]
[1725908367993,16.6632,133.47,133.42,6.021874]
[1725908368188,16.6632,133.47,133.43,7.52064748]
[1725908368504,16.6632,133.47,133.43,1.49877348]
[1725908370632,16.6632,133.47,133.42,50.0]
[1725908370917,16.6632,133.47,133.39,50.0]
[1725908371309,16.6632,133.47,133.4,1.49750759]
[1725908371511,16.6632,133.47,133.39,50.0]
[1725908371700,0.12549,133.46,133.37,50.0]
[1725908371903,20.0,133.46,133.39,50.0]